{"text_format":"1","workbook":"xlsx","n_sheets":4,"sheets":["INDICACIONS","Relació de despeses","Relació d'ingressos ","Resum estat despeses-ingressos"],"not_rendered":{"charts":0,"images":1,"macros":1,"external_links":0,"defined_names":10,"comments":3,"pivot_tables":0},"unopened":[],"bounds":{"document_bytes":16777216,"sheet_cells":100000,"rows_first":2000,"rows_last":500,"rows_between":2000,"halvings":0,"cell_chars":16384,"cell_head_chars":4096},"cells_cut":0,"cells_raw":0,"read":"whole","date_system":"1900"}

{"sheet":"INDICACIONS","index":0,"n_rows":26,"n_cols":1,"rows_kept":26,"cut":false,"hidden":false,"merged":[[0,0,0,10],[2,0,2,12],[3,0,3,12],[4,0,4,12],[6,0,6,12],[5,0,5,1],[5,2,5,7],[24,0,24,12],[25,0,25,12],[11,0,11,2],[14,0,14,2],[14,3,14,7],[18,0,18,12],[19,0,19,12],[20,0,20,12],[22,0,22,12],[23,0,23,12],[21,0,21,2],[12,0,12,12],[13,0,13,12],[15,0,15,12],[16,0,16,12],[17,0,17,12],[7,0,7,12],[8,0,8,12],[9,0,9,12],[10,0,10,12],[1,1,1,7]]}
["INDICACIONS PER EMPLENAR LA MEMÒRIA ECONÒMICA JUSTIFICATIVA:"]
["General:"]
["Aquestes pestanyes d'Excel estan protegides i només es permet escriure en les cel·les editables. Cal emplenar els fulls telemàticament, des del vostre ordinador."]
["Les àrees ombrejades de color groc, s'aniran emplenant a mesura que es completin les cel·les relacionades."]
["Recordeu que, en imprimir o convertir el document a .pdf cal imprimir, o convertir, les tres pestanyes del llibre \n(Atenció! Imprimiu-les només quan estiguin emplenades)."]
["Relació de despeses:"]
["(*) S'han de relacionar totes les despeses del projecte subvencionat. A la columna \"Import imputat (dedicat) al projecte\", indicarem la part de la factura o document acreditatiu que cobreix despeses del projecte. A la columna \"Import imputat a la subvenció Impulsem el que fas\", la part d'aquestes despeses del projecte que cobreix la subvenció atorgada.\nEn el cas que el nombre de files de cada concepte sigui insuficient podeu inserir línies dins del mateix concepte seleccionant una cel·la verda i fent clic sobre el botó d'inserir línia.\n"]
["(1) Respecte a les despeses de recursos humans, pot ser subvencionable el cost total salarial mensual, que correspon a la suma de la retribució bruta que apareix a la nòmina del treballador/a més la quota de l'empresa a la Seg. Social. Les despeses de personal es justifiquen amb la nòmina del treballador/a acompanyada dels corresponents TC1 (RLC - Rebut de Liquidació de Cotitzacions) i TC2 (RNT - Relació Nominal de Treballadors) de la TGSS, el model 111 (de liquidació mensual o trimestral de l'IRPF) i el model 190 (de resum anual)."]
["(2) En el cas que el document justificatiu de la resta de despeses, no sigui una factura, sinó un altre document probatori equivalent, com un rebut o justificant de dietes (cas de dietes o transport públic), indiqueu-ho en el camp d'observacions. "]
["(3) En el cas que un justificant inclogui conceptes que no tenen a veure amb el projecte per al qual s'ha atorgat la subvenció, a la columna \"Import imputat (dedicat) al projecte\" només s'ha d'indicar la part que realment s'ha dedicat al projecte."]
["(4) En la columna \"Import imputat a la subvenció Impulsem el que fas\", s'ha d'indicar l'import total o parcial de la factura que s'imputa a la subvenció rebuda de l'Ajuntament de Barcelona (Impulsem el que fas). La suma total d'aquesta columna ha de ser igual a l'import de la subvenció rebuda."]
["Resum d'ingressos:"]
["(1) Cal indicar l'import de subvenció atorgada tal i com figura en l'anunci de resolució "]
["(2) La suma total d'ingressos ha de ser igual que la suma total de despeses imputades (dedicades) al projecte."]
["Resum Estat despeses-ingressos:"]
["(*) Les columnes ombrejades en color groc s'aniran emplenant automàticament a partir de les dades introduïdes en els fulls Relació de despeses i Relació d'ingressos. Per tant, no imprimiu, ni convertiu a .pdf, aquest full fins haver emplenat els altres."]
["(1) Previsió inicial o reformulació ja aprovada= S'ha d'indicar la previsió inicial de despeses i d'ingressos segons allò que es va indicar al projecte original en el document \"pressupost\". En cas que ja s'hagi aprovat una reformulació, s'han d'indicar les quantitats reformulades. "]
["(2) Despeses reals = Cost real total del projecte subvencionat. Automàticament s'introduiran els subtotals de les despeses relacionades al full Relació de despeses."]
["(3) Ingressos reals = Total d'ingressos obtinguts per a la realització del projecte subvencionat. Automàticament s'introduiran els subtotals dels ingressos relacionats al full Relació d'ingressos."]
["(4) A l'espai dedicat a \"Explicar els motius pels quals existeix una desviació entre la despesa prevista en la sol·licitud de subvenció (o la reformulació de pressupost aprovada) i la finalment realitzada, així com entre els ingressos previstos i els obtinguts\", cal consignar els motius pels quals s'ha produït una desviació, ja sigui en el total de despeses (o ingressos), com entre conceptes de despesa (o ingrés). Cal afegir també els motius pels quals no es va detectar a temps per a presentar una reformulació."]
["(5) Els imports totals de les columnes \"Previsió inicial o reformulació ja aprovada\" de despeses i d'ingressos han de ser iguals.\nDe la mateixa manera, els imports totals de les columnes \"Despeses realitzades\" i \"Ingressos obtinguts\" han de ser iguals."]
["Finalització del procés:"]
["Un cop emplenades les pestanyes d'aquest Excel, cal imprimir-les per signar-les, sempre i quan no es disposi de signatura digital i es pugui emprar aquest mitjà. Un cop signades cal guardar-les en format .pdf a l'ordinador per tal de fer el registre a Portal de Tràmits."]
["En el cas de justificació simplificada, caldrà registrar les tres pestanyes del document, ja sia de manera conjunta en un sol arxiu, o en tres arxius separats, sempre en format .pdf.\nEn fer la relació de factures adjunta a la declaració responsable, cal fer coincidir el número d'ordre amb el que la factura té en la primera pestanya d'aquest Excel.\nRecomanem la lectura de la guia d'execució de projectes per a disposar de tota la informació necessària per presentar la justificació i utilitzar els annexos facilitats en el web de la convocatòria corresponent."]
["En el cas de justificació per Auditoria, aquestes tres pestanyes cal que estiguin signades i segellades (també) per l'Auditoria. Poden presentar-se en un sol arxiu que contingui Informe d'auditoria, memòria tècnica i memòria econòmica; o en arxius separats, sempre i quan acompleixin el requisit de signatura i segell de l'Auditoria."]
["En cas de dubtes o aclariments, podeu contactar amb proximitat@barcelonactiva.cat, indicant el número d'expedient (tal i com figura en les resolucions de la convocatòria) i l'any de la convocatòria."]

{"sheet":"Relació de despeses","index":1,"n_rows":120,"n_cols":10,"rows_kept":120,"cut":false,"hidden":false,"merged":[[103,9,103,10],[110,9,110,10],[17,9,17,10],[19,9,19,10],[20,9,20,10],[21,9,21,10],[22,9,22,10],[23,9,23,10],[24,9,24,10],[25,9,25,10],[34,9,34,10],[100,9,100,10],[101,9,101,10],[104,9,104,10],[105,9,105,10],[93,9,93,10],[96,9,96,10],[97,9,97,10],[98,9,98,10],[107,9,107,10],[86,9,86,10],[89,9,89,10],[90,9,90,10],[44,0,44,10],[7,9,7,10],[8,9,8,10],[9,0,9,10],[26,9,26,10],[72,0,72,10],[77,0,77,6],[71,0,71,6],[99,0,99,10],[106,0,106,10],[64,0,64,6],[58,0,58,10],[30,9,30,10],[29,9,29,10],[7,3,7,4],[85,0,85,10],[78,0,78,10],[84,0,84,6],[92,0,92,10],[65,0,65,10],[57,0,57,6],[82,9,82,10],[51,0,51,10],[50,0,50,6],[38,9,38,10],[3,0,3,1],[7,1,8,1],[7,0,8,0],[6,0,6,4],[112,0,112,6],[91,9,91,10],[66,9,66,10],[77,9,77,10],[76,9,76,10],[67,9,67,10],[52,9,52,10],[64,9,64,10],[63,9,63,10],[62,9,62,10],[61,9,61,10],[60,9,60,10],[59,9,59,10],[57,9,57,10],[56,9,56,10],[28,0,28,10],[35,9,35,10],[33,9,33,10],[32,9,32,10],[31,9,31,10],[115,0,115,10],[116,0,116,10],[83,9,83,10],[84,9,84,10],[119,1,119,3],[119,5,119,10],[105,0,105,6],[91,0,91,6],[36,0,36,6],[43,0,43,6],[36,9,36,10],[112,9,112,10],[113,9,113,10],[113,0,113,5],[109,9,109,10],[75,9,75,10],[74,9,74,10],[71,9,71,10],[98,0,98,6],[111,9,111,10],[70,9,70,10],[69,9,69,10],[68,9,68,10],[79,9,79,10],[16,9,16,10],[15,9,15,10],[14,9,14,10],[27,9,27,10],[45,9,45,10],[43,9,43,10],[42,9,42,10],[41,9,41,10],[40,9,40,10],[39,9,39,10],[73,9,73,10],[0,0,0,10],[4,0,4,1],[27,0,27,6],[2,2,2,3],[3,2,3,3],[4,2,4,3],[10,9,10,10],[2,0,2,1],[50,9,50,10],[2,4,2,6],[3,4,3,6],[4,4,4,6],[49,9,49,10],[48,9,48,10],[47,9,47,10],[46,9,46,10],[7,2,8,2],[11,9,11,10],[12,9,12,10],[55,9,55,10],[54,9,54,10],[53,9,53,10],[37,0,37,10]]}
["Relació classificada de totes les despeses realitzades per a l'execució de l'activitat  subvencionada"]
[]
["Persona física/jurídica beneficiària:         ",null,null,null,"Import total del projecte:",null,null,null,"euros"]
["Codi de subvenció / Número expedient:",null,"/",null,"Import de la subvenció atorgada:",null,null,null,"euros"]
["Nom del projecte subvencionat:",null,null,null,"Període d'execució del projecte subvencionat:",null,null,null,"a"]
[]
["Despeses del projecte/activitat/servei subvencionat (*)"]
["núm. d'ordre ","número de document: justificants despesa personal (1), factura o rebut/tiquet(2)","Concepte de la factura / \ndocument probatori equivalent","Emissor de la factura",null,"data d'emissió","Import total de la factura","Import imputat (dedicat) al projecte (3)","Import imputat a la subvenció Impulsem el que fas (4)","Observacions"]
[null,null,null,"NIF","Nom","dd/mm/aaaa","euros","euros","euros","(2)"]
["A. RECURSOS HUMANS (retribucions brutes - nòmines - i Seguretat Social del personal fix o eventual contractat per a l'execució del projecte"]
[{"$f":"IF(B11<>\"\",1,\"\")","v":""}]
[{"$f":"IF(B12<>\"\",MAX($A$11:A11)+1,\"\")","v":""}]
[{"$f":"IF(B13<>\"\",MAX($A$11:A12)+1,\"\")","v":""}]
[{"$f":"IF(B14<>\"\",MAX($A$11:A13)+1,\"\")","v":""}]
[{"$f":"IF(B15<>\"\",MAX($A$11:A14)+1,\"\")","v":""}]
[{"$f":"IF(B16<>\"\",MAX($A$11:A15)+1,\"\")","v":""}]
[{"$f":"IF(B17<>\"\",MAX($A$11:A16)+1,\"\")","v":""}]
[{"$f":"IF(B18<>\"\",MAX($A$11:A17)+1,\"\")","v":""}]
[{"$f":"IF(B19<>\"\",MAX($A$11:A18)+1,\"\")","v":""}]
[{"$f":"IF(B20<>\"\",MAX($A$11:A19)+1,\"\")","v":""}]
[{"$f":"IF(B21<>\"\",MAX($A$11:A20)+1,\"\")","v":""}]
[{"$f":"IF(B22<>\"\",MAX($A$11:A21)+1,\"\")","v":""}]
[{"$f":"IF(B23<>\"\",MAX($A$11:A22)+1,\"\")","v":""}]
[{"$f":"IF(B24<>\"\",MAX($A$11:A23)+1,\"\")","v":""}]
[{"$f":"IF(B25<>\"\",MAX($A$11:A24)+1,\"\")","v":""}]
[{"$f":"IF(B26<>\"\",MAX($A$11:A25)+1,\"\")","v":""}]
[{"$f":"IF(B27<>\"\",MAX($A$11:A26)+1,\"\")","v":""}]
["Subtotal A",null,null,null,null,null,null,{"$f":"SUM(H11:H27)","v":0},{"$f":"SUM(I11:I27)","v":0}]
["B. LLOGUERS (materials, infraestructures): Arrendament de bens mobles i/o immobles emprats per a l'execució del projecte"]
[{"$f":"IF(B30<>\"\",MAX($A$11:A29)+1,\"\")","v":""}]
[{"$f":"IF(B31<>\"\",MAX($A$29:A30)+1,\"\")","v":""}]
[{"$f":"IF(B32<>\"\",MAX($A$29:A31)+1,\"\")","v":""}]
[{"$f":"IF(B33<>\"\",MAX($A$29:A32)+1,\"\")","v":""}]
[{"$f":"IF(B34<>\"\",MAX($A$29:A33)+1,\"\")","v":""}]
[{"$f":"IF(B35<>\"\",MAX($A$29:A34)+1,\"\")","v":""}]
[{"$f":"IF(B36<>\"\",MAX($A$29:A35)+1,\"\")","v":""}]
["Subtotal B",null,null,null,null,null,null,{"$f":"SUM(H30:H36)","v":0},{"$f":"SUM(I30:I36)","v":0}]
["C. SUBMINISTRAMENTS (llum, aigua, gas i altres combustibles)"]
[{"$f":"IF(B39<>\"\",MAX($A$11:A38)+1,\"\")","v":""}]
[{"$f":"IF(B40<>\"\",MAX($A$29:A39)+1,\"\")","v":""}]
[{"$f":"IF(B41<>\"\",MAX($A$29:A40)+1,\"\")","v":""}]
[{"$f":"IF(B42<>\"\",MAX($A$29:A41)+1,\"\")","v":""}]
[{"$f":"IF(B43<>\"\",MAX($A$29:A42)+1,\"\")","v":""}]
["Subtotal C",null,null,null,null,null,null,{"$f":"SUM(H39:H43)","v":0},{"$f":"SUM(I39:I43)","v":0}]
["D. COMUNICACIONS (telèfon, fax, correus, missatgeria, connexió a Internet)"]
[{"$f":"IF(B46<>\"\",MAX($A$11:A45)+1,\"\")","v":""}]
[{"$f":"IF(B47<>\"\",MAX($A$29:A46)+1,\"\")","v":""}]
[{"$f":"IF(B48<>\"\",MAX($A$29:A47)+1,\"\")","v":""}]
[{"$f":"IF(B49<>\"\",MAX($A$29:A48)+1,\"\")","v":""}]
[{"$f":"IF(B50<>\"\",MAX($A$29:A49)+1,\"\")","v":""}]
["Subtotal D",null,null,null,null,null,null,{"$f":"SUM(H46:H50)","v":0},{"$f":"SUM(I46:I50)","v":0}]
["E. ADQUISICIÓ DE MATERIAL FUNGIBLE D'OFICINA (impressos, fotocòpies i altres materials d'oficina)"]
[{"$f":"IF(B53<>\"\",MAX($A$11:A52)+1,\"\")","v":""}]
[{"$f":"IF(B54<>\"\",MAX($A$29:A53)+1,\"\")","v":""}]
[{"$f":"IF(B55<>\"\",MAX($A$29:A54)+1,\"\")","v":""}]
[{"$f":"IF(B56<>\"\",MAX($A$29:A55)+1,\"\")","v":""}]
[{"$f":"IF(B57<>\"\",MAX($A$29:A56)+1,\"\")","v":""}]
["Subtotal E",null,null,null,null,null,null,{"$f":"SUM(H53:H57)","v":0},{"$f":"SUM(I53:I57)","v":0}]
["F. ASSEGURANCES"]
[{"$f":"IF(B60<>\"\",MAX($A$11:A59)+1,\"\")","v":""}]
[{"$f":"IF(B61<>\"\",MAX($A$29:A60)+1,\"\")","v":""}]
[{"$f":"IF(B62<>\"\",MAX($A$29:A61)+1,\"\")","v":""}]
[{"$f":"IF(B63<>\"\",MAX($A$29:A62)+1,\"\")","v":""}]
[{"$f":"IF(B64<>\"\",MAX($A$29:A63)+1,\"\")","v":""}]
["Subtotal F",null,null,null,null,null,null,{"$f":"SUM(H60:H64)","v":0},{"$f":"SUM(I60:I64)","v":0}]
["G. MATERIAL TÈCNIC O DE PRODUCCIÓ FUNGIBLE"]
[{"$f":"IF(B67<>\"\",MAX($A$11:A66)+1,\"\")","v":""}]
[{"$f":"IF(B68<>\"\",MAX($A$29:A67)+1,\"\")","v":""}]
[{"$f":"IF(B69<>\"\",MAX($A$29:A68)+1,\"\")","v":""}]
[{"$f":"IF(B70<>\"\",MAX($A$29:A69)+1,\"\")","v":""}]
[{"$f":"IF(B71<>\"\",MAX($A$29:A70)+1,\"\")","v":""}]
["Subtotal G",null,null,null,null,null,null,{"$f":"SUM(H67:H71)","v":0},{"$f":"SUM(I67:I71)","v":0}]
["H. SERVEIS REALITZATS PER ALTRES EMPRESES (neteja, seguretat, manteniment, factures, personal autònom que executi el projecte, activitats directament lligades al projecte i Auditoria per la justificació, si s'escau)"]
[{"$f":"IF(B74<>\"\",MAX($A$11:A73)+1,\"\")","v":""}]
[{"$f":"IF(B75<>\"\",MAX($A$29:A74)+1,\"\")","v":""}]
[{"$f":"IF(B76<>\"\",MAX($A$29:A75)+1,\"\")","v":""}]
[{"$f":"IF(B77<>\"\",MAX($A$29:A76)+1,\"\")","v":""}]
["Subtotal H",null,null,null,null,null,null,{"$f":"SUM(H74:H77)","v":0},{"$f":"SUM(I74:I77)","v":0}]
["I. DIETES DE PERSONAL CONTRACTAT I VOLUNTARI(2): Desplaçaments, allotjaments i manutenció"]
[{"$f":"IF(B80<>\"\",MAX($A$11:A79)+1,\"\")","v":""}]
[]
[]
[{"$f":"IF(B83<>\"\",MAX($A$29:A80)+1,\"\")","v":""}]
[{"$f":"IF(B84<>\"\",MAX($A$29:A83)+1,\"\")","v":""}]
["Subtotal I",null,null,null,null,null,null,{"$f":"SUM(H80:H84)","v":0},{"$f":"SUM(I80:I84)","v":0}]
["J. AJUTS AL TRANSPORT PER A PERSONES BENEFICIÀRIES (destinatàries) DEL PROJECTE"]
[{"$f":"IF(B87<>\"\",MAX($A$11:A86)+1,\"\")","v":""}]
[]
[]
[{"$f":"IF(B90<>\"\",MAX($A$29:A87)+1,\"\")","v":""}]
[{"$f":"IF(B91<>\"\",MAX($A$29:A90)+1,\"\")","v":""}]
["Subtotal J",null,null,null,null,null,null,{"$f":"SUM(H87:H91)","v":0},{"$f":"SUM(I87:I91)","v":0}]
["K. PUBILICITAT (materials de promoció i publicitat com ara fulletons, cartells, ...)"]
[{"$f":"IF(B94<>\"\",MAX($A$11:A93)+1,\"\")","v":""}]
[]
[]
[{"$f":"IF(B97<>\"\",MAX($A$29:A94)+1,\"\")","v":""}]
[{"$f":"IF(B98<>\"\",MAX($A$29:A97)+1,\"\")","v":""}]
["Subtotal K",null,null,null,null,null,null,{"$f":"SUM(H94:H98)","v":0},{"$f":"SUM(I94:I98)","v":0}]
["L. BEQUES PER A PERSONES AMB DIFICULTATS ECONÒMIQUES DESTINATÀRIES DEL PROJECTE"]
[{"$f":"IF(B101<>\"\",MAX($A$11:A100)+1,\"\")","v":""}]
[{"$f":"IF(B102<>\"\",MAX($A$29:A101)+1,\"\")","v":""}]
[]
[{"$f":"IF(B104<>\"\",MAX($A$29:A102)+1,\"\")","v":""}]
[{"$f":"IF(B105<>\"\",MAX($A$29:A104)+1,\"\")","v":""}]
["Subtotal L",null,null,null,null,null,null,{"$f":"SUM(H101:H105)","v":0},{"$f":"SUM(I101:I105)","v":0}]
["M. ALTRES DESPESES, sempre que aquestes no es puguin imputar a un altre concepte"]
[{"$f":"IF(B108<>\"\",MAX($A$11:A107)+1,\"\")","v":""}]
[]
[{"$f":"IF(B110<>\"\",MAX($A$29:A108)+1,\"\")","v":""}]
[{"$f":"IF(B111<>\"\",MAX($A$29:A110)+1,\"\")","v":""}]
[{"$f":"IF(B112<>\"\",MAX($A$29:A111)+1,\"\")","v":""}]
["Subtotal M",null,null,null,null,null,null,{"$f":"SUM(H108:H112)","v":0},{"$f":"SUM(I108:I112)","v":0}]
["TOTAL DESPESES",null,null,null,null,null,"TOTAL",{"$f":"+H28+H37+H44+H51+H58+H65+H72+H78+H85+H92+H99+H106+H113","v":0},{"$f":"+I28+I37+I44+I51+I58+I65+I72+I78+I85+I92+I99+I106+I113","v":0}]
[]
["El Sr./Sra. (indicar el nom i cognoms de la persona representant que signa la justificació)  amb DNI/NIE (indicar el núm. DNI) en qualitat de persona física beneficiària o representant legal de la persona jurídica beneficiària (indicar nom i cognoms) amb NIF (indicar núm DNI)."]
["CERTIFICA que els rebuts/tiquets que s'han identificat com a tals en el camp d'observacions corresponen a despeses generades per l'esmentada activitat, que pels seus imports i característiques no han pogut ser objecte de factura; que els justificants relacionats imputats al projecte/activitat/servei subvencionat durant el seu període d'execució han estat efectivament pagats; que custodiarà la documentació suport que ho acredita; que aquesta documentació es troba a disposició de l'Ajuntament de Barcelona o dels altres ens municipals en els arxius d'aquesta Entitat, durant un període mínim de 4 anys a comptar des de la data de presentació de la present justificació."]
[]
[]
[null,"Població i data: ",null,null,null,"Signatura "]

{"sheet":"Relació d'ingressos ","index":2,"n_rows":87,"n_cols":10,"rows_kept":87,"cut":false,"hidden":false,"merged":[[54,6,54,9],[19,6,19,9],[50,6,50,9],[49,6,49,9],[48,6,48,9],[46,6,46,9],[45,6,45,9],[44,6,44,9],[43,6,43,9],[18,6,18,9],[17,6,17,9],[16,6,16,9],[15,6,15,9],[37,6,37,9],[25,6,25,9],[27,0,27,3],[59,6,59,9],[58,6,58,9],[20,0,20,3],[51,0,51,9],[53,6,53,9],[52,6,52,9],[33,6,33,9],[32,6,32,9],[27,6,27,9],[26,6,26,9],[24,6,24,9],[23,6,23,9],[22,6,22,9],[39,6,39,9],[38,6,38,9],[50,0,50,3],[28,0,28,9],[36,0,36,9],[42,0,42,9],[41,0,41,3],[35,0,35,3],[30,6,30,9],[29,6,29,9],[41,6,41,9],[40,6,40,9],[31,6,31,9],[35,6,35,9],[34,6,34,9],[47,6,47,9],[0,0,0,9],[11,0,11,9],[14,0,14,9],[21,0,21,9],[9,6,10,9],[12,6,12,9],[9,0,10,0],[3,2,3,3],[2,2,2,3],[6,0,6,3],[4,2,4,3],[9,2,9,3],[9,1,10,1],[13,0,13,3],[13,6,13,9],[20,6,20,9],[67,0,67,9],[55,6,55,9],[66,6,66,9],[68,6,68,9],[66,0,66,3],[59,0,59,3],[57,6,57,9],[65,6,65,9],[63,6,63,9],[62,6,62,9],[61,6,61,9],[64,6,64,9],[60,0,60,9],[80,0,80,3],[79,0,79,3],[82,0,82,9],[83,0,84,9],[79,6,79,9],[78,6,78,9],[74,6,74,9],[72,6,72,9],[69,6,69,9],[80,6,80,9],[70,6,70,9],[71,6,71,9],[73,6,73,9],[75,6,75,9],[76,6,76,9],[77,6,77,9]]}
["Detall de tots els ingressos obtinguts i aportacions del propi beneficiari per a l'execució de l'activitat subvencionada"]
[]
[null,"Nom de la persona física/jurídica beneficiària:        ",{"$f":"IF('Relació de despeses'!C3:D3<>\"\",'Relació de despeses'!C3:D3,\"\")","v":""},null,"Import total del projecte :",null,null,{"$f":"IF(+'Relació de despeses'!H3=\"\",\"\",+'Relació de despeses'!H3)","v":""},"euros"]
[null,"Codi de subvenció / Número expedient:",{"$f":"IF('Relació de despeses'!C4:D4<>\"\",'Relació de despeses'!C4:D4,\"\")","v":"/"},null,"Import de la subvenció atorgada:",null,null,{"$f":"IF(+'Relació de despeses'!H4=\"\",\"\",+'Relació de despeses'!H4)","v":""},"euros"]
[null,"Nom del projecte subvencionat",{"$f":"IF('Relació de despeses'!C5:D5<>\"\",'Relació de despeses'!C5:D5,\"\")","v":""},null,"Període d'execució del projecte subvencionat:",null,null,{"$f":"IF(+'Relació de despeses'!H5=\"\",\"\",+'Relació de despeses'!H5)","v":""},"a",{"$f":"IF(+'Relació de despeses'!J5=\"\",\"\",+'Relació de despeses'!J5)","v":""}]
[]
["Ingressos del projecte/activitat/servei subvencionat"]
[]
[]
["núm. d'ordre","Concepte de l'ingrés","Emissor de l'ingrés",null,"Data de cobrament","Import","Observacions"]
[null,null,"NIF","Nom","dd/mm/aaaa","euros"]
["A. SUBVENCIÓ de l'Ajuntament de Barcelona (import atorgat segons resolució definitiva IMPULSEM EL QUE FAS)(1)"]
[{"$f":"IF(B13<>\"\",1,\"\")","v":1},"Subvenció Impulsem el que fas","P0801900B","Ajuntament de Barcelona"]
[null,null,null,null,"Subtotal A",{"$f":"SUM(F13:F13)","v":0}]
["B. SUBVENCIONS D'ALTRES ADMINISTRACIONS (rebudes per desenvolupar aquest projecte)"]
[{"$f":"IF(B16<>\"\",MAX($A$12:A15)+1,\"\")","v":""}]
[{"$f":"IF(B17<>\"\",MAX($A$12:A16)+1,\"\")","v":""}]
[{"$f":"IF(B18<>\"\",MAX($A$12:A17)+1,\"\")","v":""}]
[{"$f":"IF(B19<>\"\",MAX($A$12:A18)+1,\"\")","v":""}]
[{"$f":"IF(B20<>\"\",MAX($A$12:A19)+1,\"\")","v":""}]
[null,null,null,null,"Subtotal B",{"$f":"SUM(F16:F20)","v":0}]
["C. APORTACIONS D'ENS PRIVATS"]
[{"$f":"IF(B23<>\"\",MAX($A$12:A22)+1,\"\")","v":""}]
[{"$f":"IF(B24<>\"\",MAX($A$12:A23)+1,\"\")","v":""}]
[{"$f":"IF(B25<>\"\",MAX($A$12:A24)+1,\"\")","v":""}]
[{"$f":"IF(B26<>\"\",MAX($A$12:A25)+1,\"\")","v":""}]
[{"$f":"IF(B27<>\"\",MAX($A$12:A26)+1,\"\")","v":""}]
[null,null,null,null,"Subtotal C",{"$f":"SUM(F23:F27)","v":0}]
["D. RECURSOS PROPIS DE L'ENTITAT (persona física o jurídica sol·licitant)"]
[{"$f":"IF(B30<>\"\",MAX($A$12:A29)+1,\"\")","v":""}]
[{"$f":"IF(B31<>\"\",MAX($A$12:A30)+1,\"\")","v":""}]
[{"$f":"IF(B32<>\"\",MAX($A$12:A31)+1,\"\")","v":""}]
[{"$f":"IF(B33<>\"\",MAX($A$12:A32)+1,\"\")","v":""}]
[{"$f":"IF(B34<>\"\",MAX($A$12:A33)+1,\"\")","v":""}]
[{"$f":"IF(B35<>\"\",MAX($A$12:A34)+1,\"\")","v":""}]
[null,null,null,null,"Subtotal D",{"$f":"SUM(F30:F35)","v":0}]
["E. TAQUILLATGE en esdeveniments inclosos en el projecte"]
[{"$f":"IF(B38<>\"\",MAX($A$12:A37)+1,\"\")","v":""}]
[{"$f":"IF(B39<>\"\",MAX($A$12:A38)+1,\"\")","v":""}]
[{"$f":"IF(B40<>\"\",MAX($A$12:A39)+1,\"\")","v":""}]
[{"$f":"IF(B41<>\"\",MAX($A$12:A40)+1,\"\")","v":""}]
[null,null,null,null,"Subtotal E",{"$f":"SUM(F38:F41)","v":0}]
["F. QUOTES D'INSCRIPCIÓ incloses en el projecte"]
[{"$f":"IF(B44<>\"\",MAX($A$12:A43)+1,\"\")","v":""}]
[{"$f":"IF(B45<>\"\",MAX($A$12:A44)+1,\"\")","v":""}]
[{"$f":"IF(B46<>\"\",MAX($A$12:A45)+1,\"\")","v":""}]
[{"$f":"IF(B47<>\"\",MAX($A$12:A46)+1,\"\")","v":""}]
[{"$f":"IF(B48<>\"\",MAX($A$12:A47)+1,\"\")","v":""}]
[{"$f":"IF(B49<>\"\",MAX($A$12:A48)+1,\"\")","v":""}]
[{"$f":"IF(B50<>\"\",MAX($A$12:A49)+1,\"\")","v":""}]
[null,null,null,null,"Subtotal F",{"$f":"SUM(F44:F50)","v":0}]
["G. VENDA DE PRODUCTES inclosos en el projecte"]
[{"$f":"IF(B53<>\"\",MAX($A$12:A52)+1,\"\")","v":""}]
[{"$f":"IF(B54<>\"\",MAX($A$12:A53)+1,\"\")","v":""}]
[{"$f":"IF(B55<>\"\",MAX($A$12:A54)+1,\"\")","v":""}]
[{"$f":"IF(B56<>\"\",MAX($A$12:A55)+1,\"\")","v":""}]
[{"$f":"IF(B57<>\"\",MAX($A$12:A56)+1,\"\")","v":""}]
[{"$f":"IF(B58<>\"\",MAX($A$12:A57)+1,\"\")","v":""}]
[{"$f":"IF(B59<>\"\",MAX($A$12:A58)+1,\"\")","v":""}]
[null,null,null,null,"Subtotal G",{"$f":"SUM(F53:F59)","v":0}]
["H. PUBLICITAT I/O ESPONOSRITZACIÓ en el marc del projecte"]
[{"$f":"IF(B62<>\"\",MAX($A$12:A61)+1,\"\")","v":""}]
[{"$f":"IF(B63<>\"\",MAX($A$12:A62)+1,\"\")","v":""}]
[{"$f":"IF(B64<>\"\",MAX($A$12:A63)+1,\"\")","v":""}]
[{"$f":"IF(B65<>\"\",MAX($A$12:A64)+1,\"\")","v":""}]
[{"$f":"IF(B66<>\"\",MAX($A$12:A65)+1,\"\")","v":""}]
[null,null,null,null,"Subtotal H",{"$f":"SUM(F62:F66)","v":0}]
["I. ALTRES INGRESSOS obtinguts en el marc del projecte"]
[{"$f":"IF(B69<>\"\",MAX($A$12:A68)+1,\"\")","v":""}]
[{"$f":"IF(B70<>\"\",MAX($A$12:A69)+1,\"\")","v":""}]
[{"$f":"IF(B71<>\"\",MAX($A$12:A70)+1,\"\")","v":""}]
[{"$f":"IF(B72<>\"\",MAX($A$12:A71)+1,\"\")","v":""}]
[{"$f":"IF(B73<>\"\",MAX($A$12:A72)+1,\"\")","v":""}]
[{"$f":"IF(B74<>\"\",MAX($A$12:A73)+1,\"\")","v":""}]
[{"$f":"IF(B75<>\"\",MAX($A$12:A74)+1,\"\")","v":""}]
[{"$f":"IF(B76<>\"\",MAX($A$12:A75)+1,\"\")","v":""}]
[{"$f":"IF(B77<>\"\",MAX($A$12:A76)+1,\"\")","v":""}]
[{"$f":"IF(B78<>\"\",MAX($A$12:A77)+1,\"\")","v":""}]
[{"$f":"IF(B79<>\"\",MAX($A$12:A78)+1,\"\")","v":""}]
[null,null,null,null,"Subtotal I",{"$f":"SUM(F69:F79)","v":0}]
["Total INGRESSOS(2)",null,null,null,"TOTAL",{"$f":"+F14+F21+F28+F36+F42+F51+F60+F67+F80","v":0}]
[]
[{"$f":"'Relació de despeses'!A116:K116","v":"El Sr./Sra. (indicar el nom i cognoms de la persona representant que signa la justificació)  amb DNI/NIE (indicar el núm. DNI) en qualitat de persona física beneficiària o representant legal de la persona jurídica beneficiària (indicar nom i cognoms) amb NIF (indicar núm DNI)."}]
["CERTIFICA que els ingressos imputats al projecte/activitat/servei subvencionat han estat efectivament ingressats; que custodiarà la documentació suport que ho acredita; que  aquesta documentació es troba a disposició de l'Ajuntament de Barcelona o dels altres ens municipals en els arxius d'aquesta Entitat, durant un període mínim de 4 anys a comptar des de la data de presentació de la present justificació."]
[]
[]
[null,"Població i data: ",null,null,"Signatura"]

{"sheet":"Resum estat despeses-ingressos","index":3,"n_rows":35,"n_cols":11,"rows_kept":35,"cut":false,"hidden":false,"merged":[[1,0,1,1],[2,0,2,1],[1,5,1,6],[2,5,2,6],[5,5,5,6],[1,2,1,3],[2,2,2,3],[3,2,3,3],[3,0,3,1],[5,0,5,1],[6,5,6,6],[7,5,7,6],[8,5,8,6],[9,5,9,6],[4,5,4,8],[10,5,10,6],[4,0,4,3],[19,7,19,8],[11,5,11,6],[12,5,12,6],[13,5,13,6],[14,5,14,6],[18,5,18,6],[16,5,16,6],[15,5,15,6],[6,0,6,1],[7,0,7,1],[8,0,8,1],[19,5,19,6],[19,0,19,1],[14,0,14,1],[23,0,23,8],[24,0,28,10],[30,0,30,10],[31,0,32,10],[34,0,34,1],[15,0,15,1],[16,0,16,1],[17,0,17,1],[18,0,18,1],[9,0,9,1],[10,0,10,1],[11,0,11,1],[12,0,12,1],[13,0,13,1]]}
["Estat de les despeses realitzades i dels ingressos obtinguts per a l'execució de l'activitat subvencionada (*)"]
["Nom de la persona física/jurídica beneficiària:         ",null,{"$f":"IF('Relació de despeses'!C3:D3<>\"\",'Relació de despeses'!C3:D3,\"\")","v":""},null,null,"Import total del projecte:",null,{"$f":"IF(+'Relació de despeses'!H3=\"\",\"\",+'Relació de despeses'!H3)","v":""},"euros"]
["Codi de subvenció / Número d'expedient:",null,{"$f":"IF('Relació de despeses'!C4:D4<>\"\",'Relació de despeses'!C4:D4,\"\")","v":"/"},null,null,"Import de la subvenció atorgada:",null,{"$f":"IF(+'Relació de despeses'!H4=\"\",\"\",+'Relació de despeses'!H4)","v":""},"euros"]
["Nom del projecte subvencionat:",null,{"$f":"IF('Relació de despeses'!C5:D5<>\"\",'Relació de despeses'!C5:D5,\"\")","v":""},null,null,"Període d'execució del projecte subvencionat:",null,null,{"$f":"IF(+'Relació de despeses'!H5=\"\",\"\",+'Relació de despeses'!H5)","v":""},"a",{"$f":"IF(+'Relació de despeses'!J5=\"\",\"\",+'Relació de despeses'!J5)","v":""}]
["Despeses del projecte/activitat/servei subvencionat",null,null,null,null,"Ingressos del projecte/activitat/servei subvencionat"]
["Concepte",null,"Previsió inicial o reformulació ja aprovada (1)","Despeses realitzades\n(2)",null,"Concepte",null,"Previsió inicial o reformulació ja aprovada (1)","Ingressos obtinguts\n(3)"]
["A. Recursos Humans (nòmines i Seguretat Social)",null,null,{"$f":"'Relació de despeses'!H28","v":0},null,"A. Subvenció Impulsem el que fas",null,null,{"$f":"'Relació d''ingressos '!F14","v":0}]
["B. Lloguers (arrendament de bens mobles i/o inombles)",null,null,{"$f":"'Relació de despeses'!H37","v":0},null,"B. Subvencions d'altres administracions",null,null,{"$f":"'Relació d''ingressos '!F21","v":0}]
["C. Subministraments ",null,null,{"$f":"'Relació de despeses'!H44","v":0},null,"C. Aportacions d'ens privats",null,null,{"$f":"'Relació d''ingressos '!F28","v":0}]
["D. Comunicacions ",null,null,{"$f":"'Relació de despeses'!H51","v":0},null,"D. Recursos propis de l'entitat",null,null,{"$f":"'Relació d''ingressos '!F36","v":0}]
["E.Adquisició de material fungible d'Oficina",null,null,{"$f":"'Relació de despeses'!H58","v":0},null,"E. Taquillatge",null,null,{"$f":"'Relació d''ingressos '!F42","v":0}]
["F. Assegurances",null,null,{"$f":"'Relació de despeses'!H65","v":0},null,"F. Quotes d'inscripció",null,null,{"$f":"'Relació d''ingressos '!F51","v":0}]
["G. Material tècnic o de producció fungible",null,null,{"$f":"'Relació de despeses'!H72","v":0},null,"G. Venda de Productes",null,null,{"$f":"'Relació d''ingressos '!F60","v":0}]
["H. Serveis realitzats per altres empreses",null,null,{"$f":"'Relació de despeses'!H78","v":0},null,"H. Publicitat i/o Esponsorització",null,null,{"$f":"'Relació d''ingressos '!F67","v":0}]
["I. Dietes de personal contractat i voluntari",null,null,{"$f":"'Relació de despeses'!H85","v":0},null,"I. Altres ingressos",null,null,{"$f":"'Relació d''ingressos '!F80","v":0}]
["J. Ajuts al transport per a persones beneficiàries",null,null,{"$f":"'Relació de despeses'!H92","v":0},null,"Total Ingressos (5)",null,{"$f":"SUM(H7:H15)","v":0},{"$f":"SUM(I7:I15)","v":0}]
["K. Publicitat",null,null,{"$f":"'Relació de despeses'!H99","v":0},null,"% finançament municipal",null,{"$f":"IF(H7=\"\",\"- %\",+H7/H16)","v":"- %"},{"$f":"IFERROR(IF(I7=\"\",\"- %\",I7/I16),\"-%\")","v":"-%"}]
["L.Beques per a destinatàries del projecte",null,null,{"$f":"'Relació de despeses'!H106","v":0},null,null,null,"Previsió inicial","Real"]
["M. Altres despeses (sempre que aquestes no es puguin imputar a un altre concepte)",null,null,{"$f":"'Relació de despeses'!H113","v":0},null,"Diferència Ingressos - Despeses ",null,{"$f":"+H16-C20","v":0},{"$f":"+I16-D20","v":0}]
["Total Despeses (5)",null,{"$f":"SUM(C7:C19)","v":0},{"$f":"SUM(D7:D19)","v":0},null,"Desviació de Despeses",null,"Desviació d'ingressos"]
[null,null,null,null,null,"Import"," %","Import","%"]
[null,null,null,null,null,{"$f":"+D20-C20","v":0},{"$f":"IFERROR(F22/C20,0)","v":0},{"$f":"+I16-H16","v":0},{"$f":"IFERROR(H22/H16,0)","v":0}]
[]
["EXPLICA els motius pels quals existeix una desviació entre la despesa prevista en la sol·licitud de subvenció i la finalment realitzada , així com entre els ingressos previstos i els obtinguts (4)."]
[]
[]
[]
[]
[]
[]
[{"$f":"+'Relació de despeses'!A116:L116","v":"El Sr./Sra. (indicar el nom i cognoms de la persona representant que signa la justificació)  amb DNI/NIE (indicar el núm. DNI) en qualitat de persona física beneficiària o representant legal de la persona jurídica beneficiària (indicar nom i cognoms) amb NIF (indicar núm DNI)."}]
["DECLARA que en relació al projecte/activitat/servei subvencionat s'han produït els ingressos i despeses que figuren en el present document, i que les desviacions respecte al pressupost inicial s'han produït per les motivacions a dalt esmentades, i perquè així consti, als efectes de justificar el compliment de l'objecte de la subvenció concedida, signo la present declaració responsable."]
[]
[]
["Població i data: ",null,null,null,null,"Signatura "]